[Event "Montenegro Festival Mix-01 2021"]
[Site "Podgorica"]
[Date "2021.03.19"]
[Round "1.4"]
[White "Kisic, Bozidar"]
[Black "Djukic, Nikola"]
[Result "1-0"]
[ECO "E71"]
[WhiteElo "2233"]
[BlackElo "2521"]
[Annotator "ChessBase"]
[PlyCount "141"]
[EventDate "2021.02.26"]
[EventType "swiss"]
[EventCountry "MNE"]
[SourceTitle "playchess.com"]
[Source "ChessBase"]
[SourceQuality "1"]
[TimeControl "40/5400+30:900+30"]

1. d4 {[%emt 0:00:00]} Nf6 {[%emt 0:00:00]} 2. c4 {[%emt 0:00:01]} g6 {[%emt 0:00:00]} 3. Nc3 {[%emt 0:00:30]} Bg7 {[%emt 0:00:00]} 4. e4 {[%emt 0:00:12]} d6 {[%emt 0:00:00]} 5. h3 {[%emt 0:00:10]} O-O {[%emt 0:00:01]} 6. Be3 {[%emt 0:00:04]} c6 {[%emt 0:04:22]} 7. Bd3 {[%emt 0:06:53]} e5 {[%emt 0:04:27]} 8. d5 {[%emt 0:01:30]} Na6 {[%emt 0:00:33]} 9. Nge2 {[%emt 0:06:05]} Nc5 {[%emt 0:01:31]} 10. Bc2 {[%emt 0:01:45]} a5 {[%emt 0:00:47]} 11. g4 {[%emt 0:04:03]} Bd7 {[%emt 0:08:02]} 12. Ng3 {[%emt 0:02:49]} cxd5 {[%emt 0:00:11]} 13. exd5 {[%emt 0:06:01]} a4 {[%emt 0:13:54]} 14. Qd2 {[%emt 0:30:37]} Qa5 {[%emt 0:03:49]} 15. g5 {[%emt 0:04:12]} Ne8 {[%emt 0:01:33]} 16. Nce4 {[%emt 0:01:40]} Nxe4 {[%emt 0:08:16]} 17. Qxa5 {[%emt 0:01:58]} Rxa5 {[%emt 0:00:06]} 18. Nxe4 {[%emt 0:00:28]} Bf5 {[%emt 0:02:15]} 19. Kd2 {[%emt 0:09:04]} f6 {[%emt 0:10:21]} 20. b4 {[%emt 0:09:55]} Ra8 {[%emt 0:04:39]} 21. gxf6 {[%emt 0:01:26]} Bxf6 {[%emt 0:00:06]} 22. c5 {[%emt 0:01:18]} Bh4 {[%emt 0:02:46]} 23. Ke2 {[%emt 0:05:52]} Nc7 {[%emt 0:01:31]} 24. Rad1 {[%emt 0:03:40]} Nb5 {[%emt 0:00:07]} 25. Rd2 {[%emt 0:01:21]} Rac8 {[%emt 0:12:01]} 26. Bd3 {[%emt 0:00:25]} Nd4+ {[%emt 0:05:52]} 27. Bxd4 {[%emt 0:00:05]} Bxe4 {[%emt 0:00:05]} 28. Bxe4 {[%emt 0:00:03]} exd4 {[%emt 0:00:05]} 29. c6 {[%emt 0:00:36]} Bxf2 {[%emt 0:08:09]} 30. b5 {[%emt 0:00:19]} Rce8 {[%emt 0:02:56]} 31. Kd3 {[%emt 0:00:32]} Rf4 {[%emt 0:00:57]} 32. Re2 {[%emt 0:00:42]} Be3 {[%emt 0:00:52]} 33. Bg2 {[%emt 0:00:04]} b6 {[%emt 0:03:27]} 34. Rb1 {[%emt 0:00:08]} Rf7 {[%emt 0:00:45]} 35. Rb4 {[%emt 0:00:48]} Ra8 {[%emt 0:00:05]} 36. h4 {[%emt 0:00:52]} Kg7 {[%emt 0:00:54]} 37. Rc4 {[%emt 0:00:32]} Rc7 {[%emt 0:00:15]} 38. Rb4 {[%emt 0:00:36]} Kh6 {[%emt 0:01:19]} 39. Rb1 {[%emt 0:00:40]} a3 {[%emt 0:01:48]} 40. Bh3 {[%emt 0:00:00]} Kh5 {[%emt 0:00:00]} 41. Be6 {[%emt 0:04:13]} Rf8 {[%emt 0:01:54]} 42. Rg2 {[%emt 0:07:20]} Rf4 {[%emt 0:04:29]} 43. Rb4 {[%emt 0:01:33]} Rf1 {[%emt 0:01:30]} 44. Ra4 {[%emt 0:01:07]} Rb1 {[%emt 0:03:50]} 45. Ra8 {[%emt 0:01:00]} Rxb5 {[%emt 0:00:13]} 46. Rb8 {[%emt 0:01:12]} Ra5 {[%emt 0:00:07]} 47. Rb7 {[%emt 0:00:53]} Ra7 {[%emt 0:00:08]} 48. Rxb6 {[%emt 0:00:33]} Re7 {[%emt 0:01:18]} 49. Rb8 {[%emt 0:00:44]} Bf4 {[%emt 0:01:08]} 50. Rb1 {[%emt 0:01:13]} Be5 {[%emt 0:00:52]} 51. Rb8 {[%emt 0:00:46]} Bf6 {[%emt 0:00:58]} 52. Rb1 {[%emt 0:01:34]} Bxh4 {[%emt 0:01:31]} 53. Rg4 {[%emt 0:00:11]} g5 {[%emt 0:00:29]} 54. Rxd4 {[%emt 0:00:14]} Kg6 {[%emt 0:00:35]} 55. Rdb4 {[%emt 0:00:20]} h5 {[%emt 0:00:58]} 56. Rb7 {[%emt 0:00:15]} Bf2 {[%emt 0:00:11]} 57. Rxe7 {[%emt 0:00:54]} Rxe7 {[%emt 0:00:06]} 58. Bd7 {[%emt 0:00:26]} Re3+ {[%emt 0:01:40]} 59. Kd2 {[%emt 0:00:20]} Re5 {[%emt 0:00:19]} 60. c7 {[%emt 0:00:33]} Rxd5+ {[%emt 0:00:04]} 61. Ke2 {[%emt 0:00:17]} Rc5 {[%emt 0:00:10]} 62. c8=Q {[%emt 0:00:15]} Rxc8 {[%emt 0:00:04]} 63. Bxc8 {[%emt 0:00:05]} Bc5 {[%emt 0:00:04]} 64. Kf3 {[%emt 0:00:12]} g4+ {[%emt 0:00:19]} 65. Kf4 {[%emt 0:00:33]} Bd4 {[%emt 0:00:05]} 66. Rb3 {[%emt 0:00:39]} Be5+ {[%emt 0:00:05]} 67. Ke4 {[%emt 0:00:24]} Kg5 {[%emt 0:01:28]} 68. Rxa3 {[%emt 0:00:14]} h4 {[%emt 0:00:05]} 69. Ke3 {[%emt 0:01:21]} h3 {[%emt 0:00:17]} 70. Ra4 {[%emt 0:00:55]} h2 {[%emt 0:00:11]} 71. Bb7 {[%emt 0:00:26]} 1-0

[Event "Montenegro Festival Mix-01 2021"]
[Site "Podgorica"]
[Date "2021.03.19"]
[Round "1.6"]
[White "Vujovic, Savo"]
[Black "Blagojevic, Dragisa"]
[Result "1-0"]
[ECO "D52"]
[WhiteElo "2187"]
[BlackElo "2489"]
[Annotator "ChessBase"]
[PlyCount "123"]
[EventDate "2021.02.26"]
[EventType "swiss"]
[EventCountry "MNE"]
[SourceTitle "playchess.com"]
[Source "ChessBase"]
[SourceQuality "1"]
[TimeControl "40/5400+30:900+30"]

1. d4 {[%emt 0:00:00]} d5 {[%emt 0:00:00]} 2. c4 {[%emt 0:00:00]} e6 {[%emt 0:00:28]} 3. Nf3 {[%emt 0:00:07]} Nf6 {[%emt 0:00:24]} 4. Nc3 {[%emt 0:00:08]} Nbd7 {[%emt 0:00:32]} 5. Bg5 {[%emt 0:01:08]} c6 {[%emt 0:00:18]} 6. e3 {[%emt 0:00:44]} Qa5 {[%emt 0:00:34]} 7. Nd2 {[%emt 0:00:19]} dxc4 {[%emt 0:00:24]} 8. Bxf6 {[%emt 0:00:07]} Nxf6 {[%emt 0:00:06]} 9. Nxc4 {[%emt 0:00:03]} Qc7 {[%emt 0:00:06]} 10. Rc1 {[%emt 0:00:11]} Be7 {[%emt 0:01:39]} 11. g3 {[%emt 0:02:28]} O-O {[%emt 0:02:11]} 12. Bg2 {[%emt 0:01:12]} Rd8 {[%emt 0:01:10]} 13. O-O {[%emt 0:00:16]} Nd5 {[%emt 0:10:11]} 14. a3 {[%emt 0:02:45]} Bd7 {[%emt 0:01:05]} 15. b4 {[%emt 0:01:21]} Be8 {[%emt 0:00:52]} 16. Qb3 {[%emt 0:01:36]} a6 {[%emt 0:07:08]} 17. Rfd1 {[%emt 0:08:00]} b6 {[%emt 0:19:21]} 18. Ne5 {[%emt 0:17:06]} Qb7 {[%emt 0:02:52]} 19. Nxd5 {[%emt 0:10:28]} cxd5 {[%emt 0:03:35]} 20. Rc3 {[%emt 0:01:28]} Rdc8 {[%emt 0:11:37]} 21. Rdc1 {[%emt 0:04:31]} Bd6 {[%emt 0:05:20]} 22. Nc4 {[%emt 0:10:21]} Bf8 {[%emt 0:02:55]} 23. Qc2 {[%emt 0:04:35]} Bd7 {[%emt 0:10:33]} 24. Qb2 {[%emt 0:11:09]} f6 {[%emt 0:03:24]} 25. Nd2 {[%emt 0:04:13]} Rxc3 {[%emt 0:00:22]} 26. Rxc3 {[%emt 0:00:15]} Rc8 {[%emt 0:00:36]} 27. e4 {[%emt 0:04:28]} Rxc3 {[%emt 0:01:32]} 28. Qxc3 {[%emt 0:00:06]} Bc6 {[%emt 0:08:34]} 29. Qb3 {[%emt 0:01:25]} Qd7 {[%emt 0:00:49]} 30. exd5 {[%emt 0:00:38]} Bxd5 {[%emt 0:00:29]} 31. Bxd5 {[%emt 0:00:07]} Qxd5 {[%emt 0:00:28]} 32. Qxd5 {[%emt 0:00:06]} exd5 {[%emt 0:00:04]} 33. Nb1 {[%emt 0:01:59]} a5 {[%emt 0:02:10]} 34. b5 {[%emt 0:05:28]} Kf7 {[%emt 0:00:59]} 35. Kf1 {[%emt 0:01:24]} Ke6 {[%emt 0:01:04]} 36. Ke2 {[%emt 0:01:53]} h5 {[%emt 0:00:56]} 37. h3 {[%emt 0:00:55]} Bd6 {[%emt 0:00:40]} 38. g4 {[%emt 0:01:20]} hxg4 {[%emt 0:00:15]} 39. hxg4 {[%emt 0:00:04]} Bf4 {[%emt 0:01:25]} 40. f3 {[%emt 0:00:00]} Bc1 {[%emt 0:00:00]} 41. Kd3 {[%emt 0:02:18]} Bb2 {[%emt 0:03:41]} 42. a4 {[%emt 0:01:22]} f5 {[%emt 0:04:56]} 43. Nd2 {[%emt 0:00:12]} Kf6 {[%emt 0:06:04]} 44. gxf5 {[%emt 0:02:25]} Bc1 {[%emt 0:01:24]} 45. Nb1 {[%emt 0:01:52]} Bb2 {[%emt 0:00:12]} 46. Nd2 {[%emt 0:00:26]} Kxf5 {[%emt 0:00:32]} 47. Nf1 {[%emt 0:01:08]} Kf4 {[%emt 0:01:10]} 48. Ne3 {[%emt 0:00:08]} Kxf3 {[%emt 0:00:06]} 49. Nxd5 {[%emt 0:00:04]} g5 {[%emt 0:00:05]} 50. Nxb6 {[%emt 0:00:39]} g4 {[%emt 0:01:01]} 51. Nd5 {[%emt 0:04:19]} g3 {[%emt 0:02:02]} 52. Ne3 {[%emt 0:00:07]} Kf4 {[%emt 0:01:34]} 53. b6 {[%emt 0:01:53]} Ba3 {[%emt 0:00:08]} 54. Nc4 {[%emt 0:02:10]} g2 {[%emt 0:00:53]} 55. b7 {[%emt 0:00:07]} Bd6 {[%emt 0:00:22]} 56. Nxd6 {[%emt 0:00:10]} g1=Q {[%emt 0:00:02]} 57. b8=Q {[%emt 0:00:11]} Qf1+ {[%emt 0:01:05]} 58. Kc2 {[%emt 0:00:45]} Qf2+ {[%emt 0:00:28]} 59. Kb3 {[%emt 0:01:02]} Qf3+ {[%emt 0:00:34]} 60. Ka2 {[%emt 0:00:43]} Qg2+ {[%emt 0:00:28]} 61. Ka3 {[%emt 0:00:35]} Qf3+ {[%emt 0:00:38]} 62. Qb3 {[%emt 0:00:10]} 1-0

[Event "Montenegro Festival Mix-01 2021"]
[Site "Podgorica"]
[Date "2021.03.19"]
[Round "1.7"]
[White "Nikcevic, Nebojsa"]
[Black "Pobor, Milo"]
[Result "1-0"]
[ECO "E91"]
[WhiteElo "2412"]
[BlackElo "2105"]
[Annotator "NA"]
[PlyCount "57"]
[EventDate "2021.02.26"]
[EventType "swiss"]
[EventCountry "MNE"]
[SourceTitle "playchess.com"]
[Source "ChessBase"]
[SourceQuality "1"]
[TimeControl "40/5400+30:900+30"]

1. d4 {[%emt 0:00:00]} Nf6 {[%emt 0:00:00]} 2. c4 {[%emt 0:00:58]} c5 {[%emt 0:00:00]} 3. Nf3 {[%emt 0:00:21]} g6 {[%emt 0:05:33]} 4. Nc3 {[%emt 0:00:51]} Bg7 {[%emt 0:01:08]} 5. e4 {[%emt 0:00:07]} O-O {[%emt 0:00:31]} 6. Be2 {[%emt 0:00:28]} d6 {[%emt 0:06:02]} 7. O-O {[%emt 0:00:14]} Nc6 {[%emt 0:01:06]} 8. d5 {[%emt 0:00:10]} Nb8 {[%emt 0:01:02]} 9. Bf4 {[%emt 0:06:12]} Na6 {[%emt 0:11:31]} 10. h3 {[%emt 0:02:29]} Nc7 {[%emt 0:01:04]} 11. Re1 {[%emt 0:13:52]} a6 {[%emt 0:05:47]} 12. a4 {[%emt 0:04:47]} Rb8 {[%emt 0:03:27]} 13. e5 {[%emt 0:07:13]} Nfe8 {[%emt 0:04:52]} 14. a5 {[%emt 0:03:40]} b5 {[%emt 0:05:18]} 15. axb6 {[%emt 0:00:24]} Rxb6 {[%emt 0:00:19]} 16. Qd2 {[%emt 0:00:29]} Bd7 {[%emt 0:17:57]} 17. Ra2 {[%emt 0:07:40]} dxe5 {[%emt 0:06:18]} 18. Nxe5 {[%emt 0:00:52]} Nd6 {[%emt 0:01:25]} 19. Nxd7 {[%emt 0:02:01]} Qxd7 {[%emt 0:00:17]} 20. Na4 {[%emt 0:00:25]} Rbb8 {[%emt 0:00:33]} 21. Nxc5 {[%emt 0:01:36]} Qd8 {[%emt 0:01:01]} 22. b3 {[%emt 0:03:30]} Nf5 {[%emt 0:03:46]} 23. Qa5 {[%emt 0:13:05]} Nd6 {[%emt 0:01:44]} 24. Bd1 {[%emt 0:01:29]} Bd4 {[%emt 0:01:08]} 25. Be5 {[%emt 0:08:27]} Bxe5 {[%emt 0:01:04]} 26. Rxe5 {[%emt 0:00:05]} Nb7 {[%emt 0:02:51]} 27. Nxb7 {[%emt 0:03:19]} Rxb7 {[%emt 0:00:12]} 28. Qa3 {[%emt 0:03:28]} e6 {[%emt 0:01:30]} 29. d6 {[%emt 0:02:42]} 1-0

[Event "Montenegro Festival Mix-01 2021"]
[Site "Podgorica"]
[Date "2021.03.19"]
[Round "1.8"]
[White "Djurovic, Peko"]
[Black "Can, Isik"]
[Result "0-1"]
[ECO "B12"]
[WhiteElo "2062"]
[BlackElo "2380"]
[Annotator "RC"]
[PlyCount "56"]
[EventDate "2021.02.26"]
[EventType "swiss"]
[EventCountry "MNE"]
[SourceTitle "playchess.com"]
[Source "ChessBase"]
[SourceQuality "1"]
[TimeControl "40/5400+30:900+30"]

1. e4 {[%emt 0:00:00]} c6 {[%emt 0:00:00]} 2. d4 {[%emt 0:00:00]} d5 {[%emt 0:00:00]} 3. e5 {[%emt 0:00:00]} Bf5 {[%emt 0:00:00]} 4. h4 {[%emt 0:00:00]} h5 {[%emt 0:00:00]} 5. Bg5 {[%emt 0:00:02]} Qb6 {[%emt 0:00:05]} 6. Bd3 {[%emt 0:00:14]} Qxd4 {[%emt 0:00:05]} 7. Nf3 {[%emt 0:00:10]} Qg4 {[%emt 0:00:05]} 8. O-O {[%emt 0:00:07]} Bxd3 {[%emt 0:00:03]} 9. Qxd3 {[%emt 0:00:05]} e6 {[%emt 0:00:04]} 10. Nbd2 {[%emt 0:00:07]} Be7 {[%emt 0:00:35]} 11. c4 {[%emt 0:01:37]} Bxg5 {[%emt 0:07:34]} 12. Nxg5 {[%emt 0:00:18]} Ne7 {[%emt 0:00:05]} 13. cxd5 {[%emt 0:02:29]} cxd5 {[%emt 0:08:51]} 14. Rac1 {[%emt 0:06:28]} Nbc6 {[%emt 0:02:48]} 15. Ndf3 {[%emt 0:01:18]} Ng6 {[%emt 0:12:25]} 16. Qb5 {[%emt 0:21:17]} O-O {[%emt 0:01:08]} 17. Qxb7 {[%emt 0:01:03]} Ncxe5 {[%emt 0:13:52]} 18. Nxe5 {[%emt 0:04:02]} Nxe5 {[%emt 0:00:55]} 19. Rc3 {[%emt 0:16:34]} Qxh4 {[%emt 0:08:05]} 20. f4 {[%emt 0:14:17]} Ng6 {[%emt 0:02:07]} 21. Rcf3 {[%emt 0:01:47]} Rab8 {[%emt 0:17:08]} 22. Qxa7 {[%emt 0:08:36]} Rxb2 {[%emt 0:00:17]} 23. Qe3 {[%emt 0:00:12]} Qg4 {[%emt 0:06:58]} 24. Rg3 {[%emt 0:00:16]} Qe2 {[%emt 0:03:48]} 25. Qxe2 {[%emt 0:01:03]} Rxe2 {[%emt 0:00:02]} 26. f5 {[%emt 0:00:33]} exf5 {[%emt 0:00:25]} 27. Rxf5 {[%emt 0:00:03]} Rxa2 {[%emt 0:00:09]} 28. Rxd5 {[%emt 0:00:10]} Nf4 {[%emt 0:00:03]} 0-1

[Event "Montenegro Festival Mix-01 2021"]
[Site "Podgorica"]
[Date "2021.03.20"]
[Round "2.3"]
[White "Kisic, Bozidar"]
[Black "Suleymanli, Aydin"]
[Result "0-1"]
[ECO "D00"]
[WhiteElo "2233"]
[BlackElo "2512"]
[Annotator "ChessBase"]
[PlyCount "60"]
[EventDate "2021.02.26"]
[EventType "swiss"]
[EventCountry "MNE"]
[SourceTitle "playchess.com"]
[Source "ChessBase"]
[SourceQuality "1"]
[TimeControl "40/5400+30:900+30"]

1. d4 {[%emt 0:06:38]} d5 {[%emt 0:00:29]} 2. Bf4 {[%emt 0:00:16]} Nf6 {[%emt 0:00:46]} 3. Nc3 {[%emt 0:00:17]} a6 {[%emt 0:00:48]} 4. e3 {[%emt 0:03:45]} b5 {[%emt 0:10:52]} 5. a3 {[%emt 0:03:53]} e6 {[%emt 0:00:42]} 6. Nf3 {[%emt 0:17:06]} c5 {[%emt 0:07:00]} 7. dxc5 {[%emt 0:07:37]} Bxc5 {[%emt 0:00:23]} 8. Bd3 {[%emt 0:01:41]} Bb7 {[%emt 0:01:07]} 9. Qe2 {[%emt 0:04:47]} Nc6 {[%emt 0:06:54]} 10. e4 {[%emt 0:05:43]} Nd4 {[%emt 0:01:39]} 11. Nxd4 {[%emt 0:01:40]} Bxd4 {[%emt 0:00:18]} 12. e5 {[%emt 0:10:33]} Nd7 {[%emt 0:08:19]} 13. O-O {[%emt 0:02:14]} g5 {[%emt 0:06:10]} 14. Be3 {[%emt 0:05:34]} Bxe5 {[%emt 0:01:21]} 15. Qh5 {[%emt 0:00:21]} h6 {[%emt 0:17:53]} 16. f4 {[%emt 0:06:16]} Bf6 {[%emt 0:02:28]} 17. Ne2 {[%emt 0:05:16]} Qe7 {[%emt 0:03:19]} 18. a4 {[%emt 0:02:40]} b4 {[%emt 0:02:30]} 19. c3 {[%emt 0:04:37]} gxf4 {[%emt 0:03:33]} 20. Nxf4 {[%emt 0:02:47]} bxc3 {[%emt 0:08:00]} 21. bxc3 {[%emt 0:00:15]} Rg8 {[%emt 0:00:31]} 22. Bd4 {[%emt 0:02:14]} e5 {[%emt 0:06:03]} 23. Rfe1 {[%emt 0:00:42]} O-O-O {[%emt 0:01:26]} 24. Bxa6 {[%emt 0:04:28]} Bxa6 {[%emt 0:00:37]} 25. Nxd5 {[%emt 0:00:03]} Qd6 {[%emt 0:00:42]} 26. Nxf6 {[%emt 0:01:04]} Qxf6 {[%emt 0:00:02]} 27. Bxe5 {[%emt 0:00:27]} Nxe5 {[%emt 0:00:04]} 28. Rxe5 {[%emt 0:00:07]} Rxg2+ {[%emt 0:00:42]} 29. Kxg2 {[%emt 0:00:36]} Bb7+ {[%emt 0:01:02]} 30. Kg3 {[%emt 0:00:44]} Rd3+ {[%emt 0:00:13]} 0-1

[Event "Montenegro Festival Mix-01 2021"]
[Site "Podgorica"]
[Date "2021.03.20"]
[Round "2.5"]
[White "Djukic, Nikola"]
[Black "Injac, Teodora"]
[Result "1-0"]
[ECO "B90"]
[WhiteElo "2521"]
[BlackElo "2319"]
[Annotator "ChessBase"]
[PlyCount "93"]
[EventDate "2021.02.26"]
[EventType "swiss"]
[EventCountry "MNE"]
[SourceTitle "playchess.com"]
[Source "ChessBase"]
[SourceQuality "1"]
[TimeControl "40/5400+30:900+30"]

1. e4 {[%emt 0:03:32]} c5 {[%emt 0:00:00]} 2. Nf3 {[%emt 0:00:08]} d6 {[%emt 0:00:00]} 3. d4 {[%emt 0:00:07]} cxd4 {[%emt 0:00:00]} 4. Nxd4 {[%emt 0:00:05]} Nf6 {[%emt 0:00:00]} 5. Nc3 {[%emt 0:00:07]} a6 {[%emt 0:00:00]} 6. h3 {[%emt 0:00:05]} e5 {[%emt 0:01:07]} 7. Nf3 {[%emt 0:00:07]} Be7 {[%emt 0:01:23]} 8. Bc4 {[%emt 0:00:07]} Be6 {[%emt 0:01:14]} 9. Qe2 {[%emt 0:00:08]} O-O {[%emt 0:07:29]} 10. Bg5 {[%emt 0:02:32]} b5 {[%emt 0:05:52]} 11. Bb3 {[%emt 0:00:35]} Nbd7 {[%emt 0:08:40]} 12. Rd1 {[%emt 0:01:05]} Qc7 {[%emt 0:13:09]} 13. O-O {[%emt 0:06:09]} Rac8 {[%emt 0:05:02]} 14. a3 {[%emt 0:12:23]} Nb6 {[%emt 0:08:09]} 15. Bxf6 {[%emt 0:04:35]} Bxf6 {[%emt 0:00:51]} 16. Rd3 {[%emt 0:00:16]} Be7 {[%emt 0:16:48]} 17. Nh2 {[%emt 0:06:22]} Qc5 {[%emt 0:10:46]} 18. Ng4 {[%emt 0:05:43]} Bg5 {[%emt 0:01:36]} 19. Rb1 {[%emt 0:15:32]} Nc4 {[%emt 0:08:51]} 20. Nh2 {[%emt 0:03:16]} Qa7 {[%emt 0:03:40]} 21. Qh5 {[%emt 0:04:33]} Bd8 {[%emt 0:00:57]} 22. Bxc4 {[%emt 0:02:57]} Bxc4 {[%emt 0:00:04]} 23. Rxd6 {[%emt 0:00:08]} Bb6 {[%emt 0:00:09]} 24. Rd2 {[%emt 0:05:18]} Bd4 {[%emt 0:02:14]} 25. Nd1 {[%emt 0:00:25]} Qb7 {[%emt 0:00:45]} 26. Qh4 {[%emt 0:01:57]} Rc6 {[%emt 0:01:33]} 27. Ng4 {[%emt 0:01:25]} f6 {[%emt 0:02:04]} 28. Nde3 {[%emt 0:03:19]} Be6 {[%emt 0:00:25]} 29. c3 {[%emt 0:00:24]} Bc5 {[%emt 0:00:52]} 30. Nf5 {[%emt 0:02:37]} Bxf5 {[%emt 0:00:37]} 31. exf5 {[%emt 0:00:07]} Rc7 {[%emt 0:00:31]} 32. Rbd1 {[%emt 0:00:21]} Qc8 {[%emt 0:00:33]} 33. Qg3 {[%emt 0:01:30]} Kh8 {[%emt 0:00:32]} 34. Qf3 {[%emt 0:00:12]} Re7 {[%emt 0:00:29]} 35. Qe4 {[%emt 0:01:18]} g6 {[%emt 0:00:01]} 36. Nxf6 {[%emt 0:02:00]} gxf5 {[%emt 0:00:19]} 37. Qe2 {[%emt 0:02:08]} e4 {[%emt 0:01:11]} 38. Nd7 {[%emt 0:01:38]} Rg8 {[%emt 0:00:31]} 39. Nxc5 {[%emt 0:01:32]} Qxc5 {[%emt 0:00:02]} 40. Rd5 {[%emt 0:00:00]} Qc8 {[%emt 0:00:00]} 41. Qe3 {[%emt 0:02:21]} Reg7 {[%emt 0:06:33]} 42. g3 {[%emt 0:05:16]} Qc7 {[%emt 0:08:31]} 43. Kf1 {[%emt 0:03:45]} Qc4+ {[%emt 0:01:21]} 44. Kg2 {[%emt 0:00:18]} Qc8 {[%emt 0:01:33]} 45. Qf4 {[%emt 0:01:24]} Qc6 {[%emt 0:00:30]} 46. Kh2 {[%emt 0:01:27]} Qb6 {[%emt 0:00:03]} 47. R1d4 {[%emt 0:00:36]} 1-0

[Event "Montenegro Festival Mix-01 2021"]
[Site "Podgorica"]
[Date "2021.03.20"]
[Round "2.7"]
[White "Tomic, Aleksandar"]
[Black "Pobor, Milo"]
[Result "1-0"]
[ECO "E70"]
[WhiteElo "2360"]
[BlackElo "2105"]
[Annotator "NA"]
[PlyCount "45"]
[EventDate "2021.02.26"]
[EventType "swiss"]
[EventCountry "MNE"]
[SourceTitle "playchess.com"]
[Source "ChessBase"]
[SourceQuality "1"]
[TimeControl "40/5400+30:900+30"]

1. d4 {[%emt 0:20:15]} Nf6 {[%emt 0:00:00]} 2. c4 {[%emt 0:00:30]} c5 {[%emt 0:00:00]} 3. d5 {[%emt 0:00:22]} g6 {[%emt 0:00:00]} 4. Nc3 {[%emt 0:00:50]} Bg7 {[%emt 0:00:02]} 5. e4 {[%emt 0:00:20]} d6 {[%emt 0:00:22]} 6. Bd3 {[%emt 0:01:34]} O-O {[%emt 0:00:17]} 7. Nge2 {[%emt 0:01:37]} e6 {[%emt 0:02:56]} 8. O-O {[%emt 0:02:31]} exd5 {[%emt 0:02:59]} 9. exd5 {[%emt 0:00:17]} Re8 {[%emt 0:01:33]} 10. h3 {[%emt 0:01:09]} a6 {[%emt 0:07:46]} 11. a4 {[%emt 0:01:36]} Nbd7 {[%emt 0:03:02]} 12. f4 {[%emt 0:00:30]} Nh5 {[%emt 0:17:10]} 13. g4 {[%emt 0:11:22]} Bxc3 {[%emt 0:20:15]} 14. bxc3 {[%emt 0:08:09]} Ng7 {[%emt 0:00:32]} 15. Qe1 {[%emt 0:08:00]} h5 {[%emt 0:07:54]} 16. Qg3 {[%emt 0:01:14]} Nf6 {[%emt 0:13:39]} 17. f5 {[%emt 0:06:34]} hxg4 {[%emt 0:04:04]} 18. hxg4 {[%emt 0:03:41]} gxf5 {[%emt 0:01:39]} 19. gxf5 {[%emt 0:01:05]} Nfh5 {[%emt 0:00:12]} 20. Qg2 {[%emt 0:01:04]} f6 {[%emt 0:03:21]} 21. Bh6 {[%emt 0:01:41]} Qe7 {[%emt 0:00:53]} 22. Ng3 {[%emt 0:02:57]} Nxg3 {[%emt 0:01:17]} 23. Qxg3 {[%emt 0:00:25]} 1-0

[Event "Montenegro Festival Mix-01 2021"]
[Site "Podgorica"]
[Date "2021.03.20"]
[Round "3.6"]
[White "Vujovic, Savo"]
[Black "Tomic, Aleksandar"]
[Result "0-1"]
[ECO "B06"]
[WhiteElo "2187"]
[BlackElo "2360"]
[Annotator "NA"]
[PlyCount "74"]
[EventDate "2021.02.26"]
[EventType "swiss"]
[EventCountry "MNE"]
[SourceTitle "playchess.com"]
[Source "ChessBase"]
[SourceQuality "1"]
[TimeControl "40/5400+30:900+30"]

1. e4 {[%emt 0:00:00]} d6 {[%emt 0:01:38]} 2. d4 {[%emt 0:00:17]} g6 {[%emt 0:01:16]} 3. Nc3 {[%emt 0:00:08]} Bg7 {[%emt 0:00:47]} 4. Be3 {[%emt 0:00:25]} c6 {[%emt 0:00:52]} 5. Nf3 {[%emt 0:02:55]} b5 {[%emt 0:03:04]} 6. a3 {[%emt 0:00:50]} a6 {[%emt 0:00:56]} 7. Bd3 {[%emt 0:04:04]} e5 {[%emt 0:03:13]} 8. O-O {[%emt 0:02:58]} Bg4 {[%emt 0:03:03]} 9. dxe5 {[%emt 0:00:13]} dxe5 {[%emt 0:00:28]} 10. h3 {[%emt 0:00:31]} Bxf3 {[%emt 0:04:05]} 11. Qxf3 {[%emt 0:00:07]} Nf6 {[%emt 0:00:17]} 12. a4 {[%emt 0:12:00]} Nbd7 {[%emt 0:01:05]} 13. Na2 {[%emt 0:08:41]} Qe7 {[%emt 0:05:29]} 14. c3 {[%emt 0:05:19]} O-O {[%emt 0:03:55]} 15. Rfd1 {[%emt 0:07:41]} Qe6 {[%emt 0:05:09]} 16. Qe2 {[%emt 0:10:23]} Rfb8 {[%emt 0:06:05]} 17. axb5 {[%emt 0:03:41]} axb5 {[%emt 0:02:10]} 18. Nb4 {[%emt 0:00:46]} Rc8 {[%emt 0:06:17]} 19. c4 {[%emt 0:15:48]} Rxa1 {[%emt 0:07:16]} 20. Rxa1 {[%emt 0:00:09]} Qd6 {[%emt 0:00:29]} 21. Bd2 {[%emt 0:02:27]} bxc4 {[%emt 0:03:09]} 22. Bxc4 {[%emt 0:00:34]} Qd4 {[%emt 0:00:20]} 23. Be3 {[%emt 0:05:45]} Qxe4 {[%emt 0:00:59]} 24. Ra7 {[%emt 0:00:42]} Rb8 {[%emt 0:10:18]} 25. Na6 {[%emt 0:03:43]} Rd8 {[%emt 0:13:15]} 26. f3 {[%emt 0:05:03]} Qb1+ {[%emt 0:01:55]} 27. Kh2 {[%emt 0:00:28]} e4 {[%emt 0:00:27]} 28. Nb4 {[%emt 0:00:42]} exf3 {[%emt 0:01:00]} 29. gxf3 {[%emt 0:02:02]} Ne5 {[%emt 0:01:31]} 30. Ba2 {[%emt 0:01:11]} Qf5 {[%emt 0:04:04]} 31. f4 {[%emt 0:04:57]} Bh6 {[%emt 0:00:13]} 32. fxe5 {[%emt 0:00:33]} Qxe5+ {[%emt 0:00:12]} 33. Kg2 {[%emt 0:00:36]} Bxe3 {[%emt 0:00:22]} 34. Rxf7 {[%emt 0:00:36]} Kh8 {[%emt 0:02:56]} 35. Rxf6 {[%emt 0:00:29]} Rd2 {[%emt 0:00:23]} 36. Rf2 {[%emt 0:00:37]} Qe4+ {[%emt 0:00:40]} 37. Kg3 {[%emt 0:00:34]} Bxf2+ {[%emt 0:00:12]} 0-1